fUST/lending_fUST_20250716
["ID","MTS","AMOUNT","RATE_DAILY","PERIOD"]
[372551541,1752679881145,-151.0,0.00025847,7]
[372551542,1752679881155,-151.0,0.00025847,7]
[372551543,1752679881164,-151.0,0.00025847,7]
[372551544,1752679881174,-151.0,0.00025847,7]
[372551545,1752679881184,-151.0,0.00025847,7]
[372551546,1752679881195,-151.0,0.00025847,7]
[372551547,1752679881204,-151.0,0.00025847,7]
[372551548,1752679881214,-151.0,0.00025847,7]
[372551549,1752679881226,-151.0,0.00025847,7]
[372551550,1752679881236,-151.0,0.00025847,7]
[372551551,1752679881246,-251.255094,0.00025847,7]
[372551552,1752679881256,-251.255094,0.00025847,7]
[372551553,1752679881266,-251.255094,0.00025847,7]
[372551554,1752679881275,-251.255094,0.00025847,7]
[372551555,1752679881285,-251.255094,0.00025847,7]
[372551556,1752679881294,-251.255094,0.00025847,7]
[372551557,1752679881305,-251.255094,0.00025847,7]
[372551558,1752679881315,-251.255094,0.00025847,7]
[372551559,1752679881325,-251.255094,0.00025847,7]
[372551560,1752679881334,-251.255094,0.00025847,7]
[372551561,1752679881344,-251.255094,0.00025847,7]
[372551562,1752679881354,-251.255094,0.00025847,7]
[372551563,1752679881364,-251.255094,0.00025847,7]
[372551564,1752679881374,-251.255094,0.00025847,7]
[372551565,1752679881384,-251.255094,0.00025847,7]
[372551566,1752679881393,-251.255087,0.00025847,7]
[372551567,1752679881403,-151.0,0.00025847,7]
[372551568,1752679881414,-151.0,0.00025847,7]
[372551569,1752679881424,-151.0,0.00025847,7]
[372551570,1752679881433,-151.0,0.00025847,7]
[372551571,1752679881443,-151.0,0.00025847,7]
[372551572,1752679881452,-151.0,0.00025847,7]
[372551573,1752679881461,-151.0,0.00025847,7]
[372551574,1752679881475,-239.404908,0.00025847,7]
[372551575,1752679881485,-151.0,0.00025847,7]
[372551576,1752679881496,-151.0,0.00025847,7]
[372551577,1752679881506,-590.117061,0.00025847,7]
[372551578,1752679881516,-590.117061,0.00025847,7]
[372551579,1752679881526,-590.117061,0.00025847,7]
[372551580,1752679881537,-590.117061,0.00025847,7]
[372551581,1752679881547,-590.117061,0.00025847,7]
[372551582,1752679881556,-590.117061,0.00025847,7]
[372551583,1752679881711,-590.117061,0.00025847,7]
[372551584,1752679881724,-590.117061,0.00025847,7]
[372551585,1752679881735,-590.117061,0.00025847,7]
[372551586,1752679881745,-590.117061,0.00025847,7]
[372551587,1752679881755,-590.117061,0.00025847,7]
[372551588,1752679881764,-590.117061,0.00025847,7]
[372551589,1752679881774,-590.117061,0.00025847,7]
[372551590,1752679881785,-590.117061,0.00025847,7]
[372551591,1752679881794,-590.117061,0.00025847,7]
[372551592,1752679881804,-590.11706483,0.00025847,7]
[372551593,1752679881813,-151.0,0.00025847,7]
[372551594,1752679881823,-151.0,0.00025847,7]
[372551595,1752679881832,-151.0,0.00025847,7]
[372551596,1752679881842,-151.0,0.00025847,7]
[372551597,1752679881852,-151.0,0.00025847,7]
[372551598,1752679881862,-151.0,0.00025847,7]
[372551599,1752679881872,-151.0,0.00025847,7]
[372551600,1752679881882,-151.0,0.00025847,7]
[372551601,1752679881894,-237.016665,0.00025847,7]
[372551602,1752679881904,-217.523133,0.00025847,7]
[372551603,1752679881913,-152.032092,0.00025847,7]
[372551604,1752679881922,-217.523133,0.00025847,7]
[372551605,1752679881932,-217.523133,0.00025847,7]
[372551606,1752679881942,-217.523133,0.00025847,7]
[372551607,1752679881952,-217.523133,0.00025847,7]
[372551608,1752679881962,-217.523133,0.00025847,7]
[372551609,1752679881975,-217.523133,0.00025847,7]
[372551610,1752679881984,-217.523133,0.00025847,7]
[372551611,1752679881994,-217.523133,0.00025847,7]
[372551612,1752679882003,-217.523133,0.00025847,7]
[372551613,1752679882013,-151.0,0.00025847,7]
[372551614,1752679882023,-151.0,0.00025847,7]
[372551615,1752679882032,-151.0,0.00025847,7]
[372551616,1752679882042,-217.523133,0.00025847,7]
[372551617,1752679882052,-151.0,0.00025847,7]
[372551618,1752679882061,-151.0,0.00025847,7]
[372551619,1752679882071,-217.523133,0.00025847,7]
[372551620,1752679882080,-151.0,0.00025847,7]
[372551621,1752679882091,-217.523133,0.00025847,7]
[372551622,1752679882101,-151.0,0.00025847,7]
[372551623,1752679882110,-217.523133,0.00025847,7]
[372551624,1752679882120,-151.0,0.00025847,7]
[372551625,1752679882127,-217.523133,0.00025847,7]
[372551626,1752679882134,-217.523124,0.00025847,7]
[372551627,1752679882142,-151.0,0.00025847,7]
[372551628,1752679882151,-240.71587,0.00025847,7]
[372551629,1752679882161,-151.0,0.00025847,7]
[372551630,1752679882170,-162.452412,0.00025847,7]
[372551631,1752679882179,-152.340618,0.00025847,7]
[372551632,1752679882189,-390.626669,0.00025847,7]
[372551633,1752679882198,-390.626669,0.00025847,7]
[372551634,1752679882207,-390.626669,0.00025847,7]
[372551635,1752679882218,-390.626669,0.00025847,7]
[372551636,1752679882231,-390.626669,0.00025847,7]
[372551637,1752679882242,-390.626669,0.00025847,7]
[372551638,1752679882251,-390.626669,0.00025847,7]
[372551639,1752679882261,-390.626669,0.00025847,7]
[372551640,1752679882271,-390.626669,0.00025847,7]
[372551641,1752679882280,-390.626669,0.00025847,7]
[372551642,1752679882290,-390.626669,0.00025847,7]
[372551643,1752679882299,-390.626669,0.00025847,7]
[372551644,1752679882309,-390.626669,0.00025847,7]
[372551645,1752679882319,-390.626669,0.00025847,7]
[372551646,1752679882328,-390.626669,0.00025847,7]
[372551647,1752679882338,-390.626676,0.00025847,7]
[372551648,1752679882348,-573.17101,0.00025847,7]
[372551649,1752679882357,-573.17101,0.00025847,7]
[372551650,1752679882376,-573.17101,0.00025847,7]
[372551651,1752679882387,-573.17101,0.00025847,7]
[372551652,1752679882397,-573.17101,0.00025847,7]
[372551653,1752679882407,-573.17101,0.00025847,7]
[372551654,1752679882417,-573.17101,0.00025847,7]
[372551655,1752679882426,-573.17101,0.00025847,7]
[372551656,1752679882436,-573.17101,0.00025847,7]
[372551657,1752679882446,-573.17101,0.00025847,7]
[372551658,1752679882456,-573.17101,0.00025847,7]
[372551659,1752679882465,-573.17101,0.00025847,7]
[372551660,1752679882479,-573.17101,0.00025847,7]
[372551661,1752679882489,-573.17101,0.00025847,7]
[372551662,1752679882500,-573.17101,0.00025847,7]
[372551663,1752679882509,-573.171015,0.00025847,7]
[372551664,1752679882520,-151.0,0.00025847,7]
[372551665,1752679882531,-151.0,0.00025847,7]
[372551666,1752679882542,-151.0,0.00025847,7]
[372551667,1752679882552,-151.0,0.00025847,7]
[372551668,1752679882562,-151.0,0.00025847,7]
[372551669,1752679882572,-151.0,0.00025847,7]
[372551670,1752679882582,-151.0,0.00025847,7]
[372551671,1752679882592,-151.0,0.00025847,7]
[372551672,1752679882602,-151.0,0.00025847,7]
[372551673,1752679882612,-151.921054,0.00025847,7]
[372551674,1752679882622,-1376.785756,0.00025847,7]
[372551675,1752679882634,-1376.785756,0.00025847,7]
[372551676,1752679882645,-1376.785756,0.00025847,7]
[372551677,1752679882655,-1376.785756,0.00025847,7]
[372551678,1752679882665,-1376.785756,0.00025847,7]
[372551679,1752679882675,-1376.785756,0.00025847,7]
[372551680,1752679882691,-1376.785756,0.00025847,7]
[372551681,1752679882710,-1376.785756,0.00025847,7]
[372551682,1752679882724,-1376.785756,0.00025847,7]
[372551683,1752679882734,-1376.785756,0.00025847,7]
[372551684,1752679882744,-1376.785756,0.00025847,7]
[372551685,1752679882756,-1376.785756,0.00025847,7]
[372551686,1752679882766,-1376.785756,0.00025847,7]
[372551687,1752679882777,-1376.785756,0.00025847,7]
[372551688,1752679882788,-1376.785756,0.00025847,7]
[372551689,1752679882800,-1376.785763,0.00025847,7]
[372551690,1752679882811,-974.670941,0.00025847,7]
[372551691,1752679882822,-974.670941,0.00025847,7]
[372551692,1752679882831,-974.670941,0.00025847,7]
[372551693,1752679882842,-974.670941,0.00025847,7]
[372551694,1752679882852,-974.670941,0.00025847,7]
[372551695,1752679882863,-974.670941,0.00025847,7]
[372551696,1752679882873,-974.670941,0.00025847,7]
[372551697,1752679882883,-974.670941,0.00025847,7]
[372551698,1752679882893,-974.670941,0.00025847,7]
[372551699,1752679882902,-974.670941,0.00025847,7]
[372551700,1752679882912,-974.670941,0.00025847,7]
[372551701,1752679882922,-974.670941,0.00025847,7]
[372551702,1752679882932,-974.670941,0.00025847,7]
[372551703,1752679882942,-974.670941,0.00025847,7]
[372551704,1752679882951,-974.670941,0.00025847,7]
[372551705,1752679882960,-974.670933,0.00025847,7]
[372551706,1752679882969,-727.733832,0.00025856,7]
[372551707,1752679882983,-727.733832,0.00025856,7]
[372551708,1752679882992,-727.733832,0.00025856,7]
[372551709,1752679883002,-727.733832,0.00025856,7]
[372551710,1752679883012,-727.733832,0.00025856,7]
[372551711,1752679883022,-727.733832,0.00025856,7]
[372551712,1752679883032,-727.733832,0.00025856,7]
[372551713,1752679883043,-727.733832,0.00025856,7]
[372551714,1752679883053,-727.733832,0.00025856,7]
[372551715,1752679883063,-727.733832,0.00025856,7]
[372551716,1752679883073,-727.733832,0.00025856,7]
[372551717,1752679883084,-727.733828,0.00025856,7]
[372551718,1752679883094,-431.881165,0.00025856,7]
[372551719,1752679883104,-431.881165,0.00025856,7]
[372551720,1752679883114,-431.881165,0.00025856,7]
[372551721,1752679883124,-431.881165,0.00025856,7]
[372551722,1752679883134,-431.881165,0.00025856,7]
[372551723,1752679883143,-431.881165,0.00025856,7]
[372551724,1752679883153,-431.881165,0.00025856,7]
[372551725,1752679883163,-431.881165,0.00025856,7]
[372551726,1752679883172,-431.881165,0.00025856,7]
[372551727,1752679883182,-431.881165,0.00025856,7]
[372551728,1752679883196,-431.881165,0.00025856,7]
[372551729,1752679883206,-431.881173,0.00025856,7]
[372551730,1752679883216,-151.0,0.00025856,7]
[372551731,1752679883230,-151.0,0.00025856,7]
[372551732,1752679883239,-151.0,0.00025856,7]
[372551733,1752679883249,-151.0,0.00025856,7]
[372551734,1752679883259,-151.0,0.00025856,7]
[372551735,1752679883269,-151.0,0.00025856,7]
[372551736,1752679883279,-158.891984,0.00025856,7]
[372551737,1752679883289,-151.0,0.00025856,7]
[372551738,1752679883299,-151.0,0.00025856,7]
[372551739,1752679883309,-151.0,0.00025856,7]
[372551740,1752679883319,-151.0,0.00025856,7]
[372551741,1752679883329,-151.0,0.00025856,7]
[372551742,1752679883339,-297.1,0.00025856,7]
[372551743,1752679883349,-151.229751,0.00025856,7]
[372551744,1752679883359,-151.0,0.00025856,7]
[372551745,1752679883369,-360.683163,0.00025858,14]
[372551746,1752679883379,-150.0,0.0002586,2]
[372551747,1752679883388,-150.0,0.0002586,2]
[372551748,1752679883398,-150.0,0.0002586,2]
[372551749,1752679883407,-1600.0,0.00025877,2]
[372551750,1752679883417,-151.126824,0.0002588,7]
[372551751,1752679883427,-360.683163,0.0002588,7]
[372551752,1752679883436,-2620.46,0.00025886,2]
[372551753,1752679883446,-500.0,0.00025887,2]
[372551754,1752679883456,-177639.91961102,0.00025888,20]
[372551755,1752679883486,-2084.23000003,0.00025888,20]
[372551756,1752679884051,-460.0,0.00019178,2]
[372551757,1752679884062,-460.0,0.00019178,2]
[372551758,1752679884071,-460.0,0.00019178,2]
[372551759,1752679884081,-460.0,0.00019178,2]
[372551760,1752679884091,-460.0,0.00019452,2]
[372551761,1752679884101,-460.0,0.00019726,2]
[372551762,1752679884111,-445.4,0.00019726,2]
[372551763,1752679884120,-460.0,0.0002,2]
[372551764,1752679884130,-460.0,0.00023013,2]
[372551765,1752679884141,-460.0,0.00023287,2]
[372551766,1752679884150,-460.0,0.00023561,2]
[372551767,1752679884159,-1973.524237,0.000238,2]
[372551768,1752679884170,-541.03,0.00023835,2]
[372551769,1752679884180,-460.0,0.00023835,2]
[372551770,1752679884190,-541.03,0.00024109,2]
[372551771,1752679884200,-460.0,0.00024109,2]
[372551772,1752679884209,-1000.0,0.000243,2]
[372551773,1752679884219,-541.03,0.00024383,2]
[372551774,1752679884233,-460.0,0.00024383,2]
[372551775,1752679884243,-541.03,0.00024657,2]
[372551776,1752679884252,-460.0,0.00024657,2]
[372551777,1752679884262,-541.03,0.00024931,2]
[372551778,1752679884271,-273.1,0.00024931,2]
[372551779,1752679884280,-541.03,0.00025205,2]
[372551780,1752679884290,-541.1246554,0.00025479,2]
[372551781,1752679884300,-121071.75381473,0.00025888,20]
[372551782,1752679894956,-0.91377874,0.00025888,20]
[372551788,1752679970118,339.61551258,0.00018864,2]
[372551791,1752680000779,144462.9559243,0.00018867,2]
[372551793,1752680014649,202.117725,0.00027397,120]
[372551795,1752680024719,-15100.0,0.00018139,2]
[372551796,1752680024763,-9706.6655422,0.00018139,2]
[372551797,1752680024946,-93.3344578,0.00018139,2]
[372551800,1752680039746,362.342321,0.00013699,2]
[372551807,1752680136149,150.0,0.00015272,2]
[372551808,1752680136550,150.0,0.00016,2]
[372551812,1752680201573,150.0,0.00015239,2]
[372551813,1752680202049,150.0,0.00015964,2]
[372551825,1752680385853,380.0,0.00022,120]
[372551830,1752680477290,2996.1868267,0.00017862,2]
[372551834,1752680525265,150.0,0.00015256,2]
[372551835,1752680525882,150.0,0.00015983,2]
[372551836,1752680526296,150.0,0.00016709,2]
[372551838,1752680527214,150.0,0.00017436,2]
[372551839,1752680528144,150.0,0.00018162,2]
[372551851,1752680683077,500.0,0.00018102,2]
[372551853,1752680687679,500.0,0.00018102,2]
[372551854,1752680692328,500.0,0.00018102,2]
[372551857,1752680696950,500.0,0.00018102,2]
[372551858,1752680701581,500.0,0.00018102,2]
[372551862,1752680724923,563.64233361,0.00018,2]
[372551870,1752680814731,500.0,0.00027397,120]
[372551871,1752680814961,420.0,0.00027397,120]
[372551873,1752680836139,-1020.17500313,0.00018855,2]
[372551886,1752680980595,467.16,0.00027397,120]
[372551888,1752680995205,202.117725,0.00027397,120]
[372551890,1752681003773,1007.1004535,0.0001829,2]
[372551949,1752681032221,-1039.26567636,0.000188,2]
[372551951,1752681032231,-160.0,0.00018851,2]
[372551953,1752681032242,-300.0,0.00018855,2]
[372551955,1752681032252,-300.0,0.00018855,2]
[372551957,1752681032262,-300.0,0.00018855,2]
[372551959,1752681032272,-300.0,0.00018855,2]
[372551961,1752681032282,-319.40809483,0.00018855,2]
[372551964,1752681032294,-673.59190517,0.00018855,2]
[372551966,1752681032304,-17634.54061908,0.00018856,2]
[372551968,1752681032316,-3400.56195945,0.00018856,2]
[372552097,1752681038034,-944.2350186,0.00018856,2]
[372552141,1752681038459,-2682.50745253,0.00018856,2]
[372552143,1752681038470,-1484.97,0.00018857,3]
[372552145,1752681038480,-742.48,0.00018857,3]
[372552147,1752681038490,-371.24,0.00018857,3]
[372552149,1752681038500,-185.62,0.00018857,3]
[372552151,1752681038509,-556.9,0.00018857,3]
[372552153,1752681038520,-500.0,0.00018858,2]
[372552155,1752681038529,-349.70908859,0.00018866,2]
[372552157,1752681038539,-12600.18630647,0.00018867,2]
[372552159,1752681038551,-3291.48159513,0.00018867,2]
[372552162,1752681038563,-76465.1228727,0.00018867,2]
[372552164,1752681038575,-11653.52880934,0.00018867,2]
[372552166,1752681038587,-2759.96427186,0.00018867,2]
[372552168,1752681038599,-6436.47789346,0.00018867,2]
[372552171,1752681038616,-469.73900002,0.00018867,2]
[372552338,1752681040480,-500.0,0.00018855,2]
[372552340,1752681040489,-500.0,0.00018855,2]
[372552343,1752681040499,-500.0,0.00018855,2]
[372552346,1752681040508,-500.0,0.00018855,2]
[372552349,1752681040518,-500.0,0.00018855,2]
[372552352,1752681040527,-500.0,0.00018855,2]
[372552355,1752681040537,-221.12498701,0.00018855,2]
[372552358,1752681040546,-500.0,0.00018855,2]
[372552361,1752681040556,-500.0,0.00018855,2]
[372552363,1752681040565,-500.0,0.00018855,2]
[372552365,1752681040574,-500.0,0.00018855,2]
[372552367,1752681040583,-500.0,0.00018855,2]
[372552369,1752681040592,-500.0,0.00018855,2]
[372552370,1752681040601,-186.73220406,0.00018855,2]
[372552372,1752681040610,-391.85436088,0.00018855,2]
[372552374,1752681040619,-500.0,0.00018855,2]
[372552376,1752681040629,-500.0,0.00018855,2]
[372552378,1752681040639,-500.0,0.00018855,2]
[372552380,1752681040648,-500.0,0.00018855,2]
[372552382,1752681040658,-500.0,0.00018855,2]
[372552384,1752681040667,-500.0,0.00018855,2]
[372552386,1752681040677,-500.0,0.00018855,2]
[372552388,1752681040687,-500.0,0.00018855,2]
[372552390,1752681040696,-500.0,0.00018855,2]
[372552392,1752681040706,-500.0,0.00018855,2]
[372552394,1752681040716,-18029.49897484,0.00018867,2]
[372552631,1752681043074,-500.0,0.00018855,2]
[372552633,1752681043084,-458.29459778,0.00018855,2]
[372552645,1752681043185,-41.70540222,0.00018855,2]
[372552647,1752681043195,-500.0,0.00018855,2]
[372552649,1752681043206,-500.0,0.00018855,2]
[372552651,1752681043216,-108.09459778,0.00018855,2]
[372552653,1752681043227,-391.90540222,0.00018855,2]
[372552655,1752681043238,-500.0,0.00018855,2]
[372552657,1752681043247,-500.0,0.00018855,2]
[372552659,1752681043256,-500.0,0.00018855,2]
[372552662,1752681043267,-500.0,0.00018855,2]
[372552664,1752681043276,-500.0,0.00018855,2]
[372552666,1752681043286,-500.0,0.00018855,2]
[372552668,1752681043295,-500.0,0.00018855,2]
[372552670,1752681043305,-500.0,0.00018855,2]
[372552672,1752681043315,-329.24,0.00018855,2]
[372552674,1752681043325,-500.0,0.00018855,2]
[372552676,1752681043335,-500.0,0.00018855,2]
[372552678,1752681043346,-500.0,0.00018855,2]
[372552680,1752681043356,-500.0,0.00018855,2]
[372552682,1752681043366,-635.03550555,0.00018855,2]
[372552684,1752681043376,-437.44133664,0.00018855,2]
[372552686,1752681043386,-296.4241207,0.00018855,2]
[372552688,1752681043399,-44.39511524,0.00018855,2]
[372552690,1752681043409,-500.0,0.00018855,2]
[372552692,1752681043418,-500.0,0.00018855,2]
[372552694,1752681043428,-500.0,0.00018855,2]
[372552696,1752681043438,-500.0,0.00018855,2]
[372552698,1752681043447,-500.0,0.00018855,2]
[372552700,1752681043458,-500.0,0.00018855,2]
[372552702,1752681043468,-500.0,0.00018855,2]
[372552704,1752681043477,-500.0,0.00018855,2]
[372552706,1752681043487,-500.0,0.00018855,2]
[372552708,1752681043496,-500.0,0.00018855,2]
[372552710,1752681043507,-500.0,0.00018855,2]
[372552712,1752681043516,-500.0,0.00018855,2]
[372552714,1752681043526,-500.0,0.00018855,2]
[372552716,1752681043535,-500.0,0.00018855,2]
[372552718,1752681043544,-500.0,0.00018855,2]
[372552720,1752681043554,-500.0,0.00018855,2]
[372552722,1752681043564,-500.0,0.00018855,2]
[372552724,1752681043573,-500.0,0.00018855,2]
[372552726,1752681043583,-500.0,0.00018855,2]
[372552728,1752681043592,-500.0,0.00018855,2]
[372552730,1752681043602,-500.0,0.00018855,2]
[372552732,1752681043612,-500.0,0.00018855,2]
[372552734,1752681043622,-500.0,0.00018855,2]
[372552736,1752681043631,-500.0,0.00018855,2]
[372552738,1752681043640,-500.0,0.00018855,2]
[372552740,1752681043650,-500.0,0.00018855,2]
[372552742,1752681043659,-500.0,0.00018855,2]
[372552744,1752681043669,-272.09671475,0.00018855,2]
[372552746,1752681043678,-500.0,0.00018855,2]
[372552748,1752681043688,-500.0,0.00018855,2]
[372552750,1752681043697,-500.0,0.00018855,2]
[372552752,1752681043709,-500.0,0.00018855,2]
[372552754,1752681043718,-500.0,0.00018855,2]
[372552756,1752681043727,-500.0,0.00018855,2]
[372552758,1752681043737,-500.0,0.00018855,2]
[372552760,1752681043747,-500.0,0.00018855,2]
[372552762,1752681043756,-500.0,0.00018855,2]
[372552764,1752681043766,-500.0,0.00018855,2]
[372552766,1752681043776,-500.0,0.00018855,2]
[372552768,1752681043785,-500.0,0.00018855,2]
[372552770,1752681043795,-500.0,0.00018855,2]
[372552772,1752681043804,-500.0,0.00018855,2]
[372552774,1752681043815,-500.0,0.00018855,2]
[372552776,1752681043824,-500.0,0.00018855,2]
[372552779,1752681043835,-500.0,0.00018855,2]
[372552781,1752681043844,-500.0,0.00018855,2]
[372552783,1752681043854,-500.0,0.00018855,2]
[372552785,1752681043863,-500.0,0.00018855,2]
[372552786,1752681043873,-500.0,0.00018855,2]
[372552789,1752681043883,-500.0,0.00018855,2]
[372552791,1752681043893,-500.0,0.00018855,2]
[372552793,1752681043902,-317.06814019,0.00018855,2]
[372552795,1752681043912,-500.0,0.00018855,2]
[372552796,1752681043922,-500.0,0.00018855,2]
[372552799,1752681043931,-500.0,0.00018855,2]
[372552801,1752681043948,-500.0,0.00018855,2]
[372552804,1752681043961,-500.0,0.00018855,2]
[372552806,1752681043970,-500.0,0.00018855,2]
[372552808,1752681043980,-500.0,0.00018855,2]
[372552810,1752681043990,-500.0,0.00018855,2]
[372552812,1752681044001,-500.0,0.00018855,2]
[372552814,1752681044016,-500.0,0.00018855,2]
[372552816,1752681044026,-500.0,0.00018855,2]
[372552818,1752681044036,-500.0,0.00018855,2]
[372552820,1752681044046,-500.0,0.00018855,2]
[372552822,1752681044055,-500.0,0.00018855,2]
[372552824,1752681044065,-500.0,0.00018855,2]
[372552826,1752681044075,-500.0,0.00018855,2]
[372552828,1752681044086,-500.0,0.00018855,2]
[372552829,1752681044097,-500.0,0.00018855,2]
[372552831,1752681044111,-500.0,0.00018855,2]
[372552833,1752681044123,-500.0,0.00018855,2]
[372552835,1752681044134,-93831.04435188,0.00018867,2]
[372552837,1752681044144,-1438.17655846,0.000189,2]
[372552839,1752681044154,-2655.7186556,0.000189,2]
[372552841,1752681044164,-737.0,0.00019,2]
[372552843,1752681044174,-1786.80342809,0.00019,2]
[372552846,1752681044184,-207.4,0.00019013,2]
[372552848,1752681044194,-2328.69882468,0.00019013,2]
[372552850,1752681044203,-2655.71865553,0.00019141,2]
[372552852,1752681044213,-500.0,0.00019166,2]
[372552854,1752681044223,-500.0,0.00019166,2]
[372552856,1752681044232,-500.0,0.00019166,2]
[372552857,1752681044242,-500.0,0.00019166,2]
[372552860,1752681044252,-500.0,0.00019166,2]
[372552862,1752681044262,-500.0,0.00019166,2]
[372552864,1752681044272,-500.0,0.00019166,2]
[372552866,1752681044282,-500.0,0.00019166,2]
[372552868,1752681044292,-500.0,0.00019166,2]
[372552870,1752681044302,-500.0,0.00019166,2]
[372552872,1752681044311,-500.0,0.00019166,2]
[372552873,1752681044320,-500.0,0.00019166,2]
[372552875,1752681044330,-500.0,0.00019166,2]
[372552878,1752681044340,-500.0,0.00019166,2]
[372552879,1752681044350,-500.0,0.00019166,2]
[372552881,1752681044360,-500.0,0.00019166,2]
[372552883,1752681044370,-500.0,0.00019166,2]
[372552886,1752681044379,-500.0,0.00019166,2]
[372552888,1752681044389,-209.3396534,0.00019173,2]
[372552890,1752681044399,-500.0,0.00019173,2]
[372552891,1752681044408,-507.73144916,0.00019173,2]
[372552894,1752681044419,-334.62786577,0.00019173,2]
[372552899,1752681044464,-165.37213423,0.00019173,2]
[372552901,1752681044474,-500.0,0.00019173,2]
[372552903,1752681044484,-500.0,0.00019173,2]
[372552905,1752681044495,-500.0,0.00019173,2]
[372552907,1752681044505,-344.17840803,0.00019173,2]
[372552909,1752681044515,-500.0,0.00019173,2]
[372552911,1752681044525,-552.52962795,0.00019173,2]
[372552913,1752681044535,-500.0,0.00019173,2]
[372552915,1752681044547,-500.0,0.00019173,2]
[372552937,1752681044745,-504.38663439,0.00019173,2]
[372552939,1752681044755,-496.95905958,0.00019173,2]
[372552941,1752681044766,-460.0,0.00019178,2]
[372552943,1752681044775,-460.0,0.00019178,2]
[372552945,1752681044784,-460.0,0.00019178,2]
[372552947,1752681044794,-169.01872896,0.00019178,2]
[372552949,1752681044803,-462.94385114,0.00019178,2]
[372552951,1752681044813,-460.0,0.00019178,2]
[372552953,1752681044824,-460.0,0.00019178,2]
[372552955,1752681044834,-460.0,0.00019178,2]
[372552957,1752681044843,-460.0,0.00019178,2]
[372552959,1752681044855,-460.0,0.00019178,2]
[372552961,1752681044865,-460.0,0.00019178,2]
[372552963,1752681044874,-460.0,0.00019178,2]
[372552965,1752681044884,-460.30387237,0.00019178,2]
[372552967,1752681044894,-460.0,0.00019178,2]
[372552969,1752681044904,-440.23610767,0.00019178,2]
[372552971,1752681044913,-460.0,0.00019178,2]
[372552973,1752681044923,-460.0,0.00019178,2]
[372552975,1752681044933,-461.7204215,0.00019178,2]
[372552977,1752681044943,-460.0,0.00019178,2]
[372552979,1752681044952,-460.0,0.00019178,2]
[372552981,1752681044962,-382.68146909,0.00019178,2]
[372553116,1752681046349,-77.31853091,0.00019178,2]
[372553118,1752681046359,-247.33714422,0.00019178,2]
[372553120,1752681046370,-212.66285578,0.00019178,2]
[372553122,1752681046380,-109.68146909,0.00019178,2]
[372553199,1752681062074,1000.0,7.5e-07,120]
[372553200,1752681078761,1000.0,7.5e-07,120]
[372553201,1752681094576,1000.0,7.5e-07,120]
[372553202,1752681103942,399.809787,0.00013699,2]
[372553204,1752681110441,1000.0,7.5e-07,120]
[372553205,1752681123726,1000.0,7.5e-07,120]
[372553206,1752681131668,545.7427421,0.00018071,2]
[372553207,1752681140121,1000.0,7.5e-07,120]
[372553208,1752681154334,1000.0,7.5e-07,120]
[372553209,1752681170587,1000.0,7.5e-07,120]
[372553210,1752681185696,1000.0,7.5e-07,120]
[372553211,1752681202657,1000.0,7.5e-07,120]
[372553212,1752681215676,1000.0,7.5e-07,120]
[372553213,1752681230147,1000.0,7.5e-07,120]